bitfinex/quotes_ETHUSD_20220308
["timestamp","ask_amount","ask_price","bid_price","bid_amount"]
[1646702037861,0.9862969,2539.5,2538.4,1.80095633]
[1646702038060,0.69674144,2539.4,2538.4,1.80095633]
[1646702038263,1.12707299,2538.9,2538.4,2.97211412]
[1646702038460,1.12707299,2538.9,2538.4,1.80095633]
[1646702038666,1.12707299,2538.9,2538.2,0.00998373]
[1646702039210,1.97168,2539.3,2538.8,1.80095633]
[1646702039405,1.97041,2539.6,2539.0,2.19435633]
[1646702039605,0.00096,2539.4,2538.2,0.02297393]
[1646702039805,0.00096,2539.4,2539.1,1.80095633]
[1646702040005,0.00531658,2538.7,2538.2,3.52297393]
[1646702040205,0.00531658,2538.7,2538.6,1.80095633]
[1646702040811,0.93154378,2539.2,2538.6,1.80095633]
[1646702041008,0.93154378,2539.2,2538.8,0.94359369]
[1646702041210,0.93154378,2539.2,2539.1,1.80095633]
[1646702041412,0.98523,2539.4,2539.1,1.80095633]
[1646702041610,1.97041,2539.6,2539.1,1.80095633]
[1646702041611,1.97041,2539.6,2539.1,0.65638869]
[1646702041809,1.97041,2539.6,2538.8,0.94359369]
[1646702042110,0.00096,2539.8,2539.5,0.65638869]
[1646702042309,0.00096,2540.0,2539.5,1.85287797]
[1646702042511,0.48063013,2540.2,2539.5,5.08988928]
[1646702042709,0.1968,2540.5,2539.6,3.8934]
[1646702042954,0.00096,2540.7,2540.4,0.65638869]
[1646702043156,0.1968,2540.9,2540.6,0.65638869]
[1646702043157,0.48049941,2540.8,2540.6,0.65638869]
[1646702043458,1.23068269,2540.8,2540.6,0.65638869]
[1646702043854,0.16521407,2541.1,2540.6,0.65638869]
[1646702044055,0.16521407,2541.1,2540.3,1.21052316]
[1646702044355,0.48040374,2541.0,2540.9,0.65638869]
[1646702044754,0.48553905,2541.0,2540.9,0.65638869]
[1646702044956,0.48553905,2541.0,2540.7,0.65638869]
[1646702045162,0.48040374,2540.9,2540.7,1.12369071]
[1646702045363,0.48040374,2540.9,2540.8,0.65638869]
[1646702045963,0.48553909,2540.9,2540.8,0.65638869]
[1646702046460,1.49599186,2540.9,2540.8,0.65638869]
[1646702046725,1.49085651,2540.9,2540.8,0.65638869]
[1646702046924,0.48040374,2540.9,2540.8,0.65638869]
[1646702047124,0.48548096,2541.0,2540.8,0.65638869]
[1646702047326,0.00507722,2541.0,2540.8,0.65638869]
[1646702047727,0.00507722,2541.0,2540.8,1.04978869]
[1646702048125,2.04004355,2541.5,2541.0,0.96690848]
[1646702048325,0.47990835,2541.4,2541.0,0.96690848]
[1646702048528,0.47990835,2541.4,2541.3,0.65638869]
[1646702049133,0.47990835,2541.4,2540.5,3.5]
[1646702049327,0.47990835,2541.4,2541.1,0.65638869]
[1646702049528,0.47990835,2541.4,2540.2,5.59192997]
[1646702049529,0.48086835,2541.4,2540.4,0.98438]
[1646702049828,0.48086835,2541.4,2541.0,0.65638869]
[1646702049829,0.47990835,2541.4,2541.0,0.65638869]
[1646702050030,0.48086835,2541.4,2541.0,0.65638869]
[1646702050233,0.47990835,2541.4,2541.0,0.65638869]
[1646702050656,0.93755688,2541.1,2540.5,0.9558521]
[1646702050859,0.93755688,2541.1,2540.6,0.65638869]
[1646702051062,0.491,2541.0,2540.6,0.65638869]
[1646702051261,0.491,2541.0,2540.1,1.1471]
[1646702051262,0.47990835,2540.9,2540.1,1.1471]
[1646702051463,0.491,2540.8,2540.4,0.65638869]
[1646702051657,0.491,2540.8,2540.7,0.65638869]
[1646702051859,0.93755688,2541.1,2540.7,0.65638869]
[1646702051860,0.00502993,2540.9,2540.7,0.65638869]
[1646702052657,0.00502993,2540.9,2540.5,0.65638869]
[1646702052858,0.98471,2540.8,2540.5,1.79129114]
[1646702053057,0.98471,2540.8,2540.5,0.65638869]
[1646702053956,0.98471,2540.8,2540.1,1.1471]
[1646702053957,1.47577,2540.7,2540.1,1.1471]
[1646702054413,2.1652034,2540.5,2540.3,0.65638869]
[1646702054611,2.1652034,2540.5,2539.2,3.5]
[1646702054612,5.5,2540.3,2539.4,0.85318869]
[1646702054819,9.47941977,2540.2,2538.1,1.01255712]
[1646702055019,6.132,2540.0,2538.1,1.0]
[1646702055215,6.132,2540.0,2538.0,0.58697192]
[1646702055216,12.43,2539.8,2538.0,0.58697192]
[1646702055415,1.16721977,2539.7,2538.2,0.92786524]
[1646702055616,1.97094,2538.9,2538.2,0.92786524]
[1646702055815,1.97094,2538.9,2537.7,0.1969]
[1646702055816,0.491,2538.8,2537.6,0.5902]
[1646702056017,0.49196,2538.8,2537.6,0.5902]
[1646702056219,0.49196,2538.8,2537.7,0.01267009]
[1646702056220,0.491,2538.8,2537.7,0.01267009]
[1646702056518,0.491,2538.8,2537.8,0.1968]
[1646702056718,0.00311322,2538.3,2537.8,0.1968]
[1646702057319,0.00311322,2538.3,2537.4,0.197]
[1646702057524,0.006465,2537.8,2537.4,0.197]
[1646702058163,0.006465,2537.8,2537.1,1.08001765]
[1646702058164,0.992205,2537.8,2537.1,1.08001765]
[1646702058364,0.497465,2537.8,2537.1,1.08001765]
[1646702058768,0.006465,2537.8,2537.1,1.47341765]
[1646702058966,0.006465,2537.8,2537.7,1.23491296]
[1646702059164,0.006465,2537.8,2537.2,0.3934]
[1646702059367,0.00502526,2537.7,2537.2,0.5904]
[1646702059964,0.006465,2537.8,2537.2,0.197]
[1646702060164,0.95318393,2537.7,2537.1,1.13597621]
[1646702060365,0.85820919,2537.7,2537.1,0.0090072]
[1646702060968,0.00502526,2537.7,2537.1,0.0090072]
[1646702061169,0.992225,2537.8,2537.1,0.0090072]
[1646702061568,0.00502566,2537.7,2537.1,0.0090072]
[1646702061809,0.992225,2537.8,2537.7,0.00196396]
[1646702061810,0.006465,2537.8,2537.7,0.00196396]
[1646702067772,1.09743754,2537.8,2537.7,0.00196396]
[1646702070008,1.88843754,2537.8,2537.7,6.396e-05]
[1646702070211,4.297465,2537.8,2537.7,6.396e-05]
[1646702070406,5.5,2537.7,2537.1,0.0141568]
[1646702070607,0.491,2537.6,2537.1,0.0141568]
[1646702070814,0.491,2537.6,2537.1,0.0090072]
[1646702071008,0.491,2537.6,2536.5,0.3939]
[1646702071009,1.67418,2537.6,2536.5,0.3939]
[1646702071211,1.67418,2537.6,2536.5,0.0180144]
[1646702071212,15.08919,2537.4,2536.5,0.0180144]
[1646702071411,15.08919,2537.4,2536.2,7.35]
[1646702071412,17.63,2537.2,2536.2,7.35]
[1646702071623,17.63,2537.2,2535.5,2.4809]
[1646702071624,0.98657,2536.9,2535.5,2.4809]
[1646702071810,0.491,2536.8,2535.5,2.4809]
[1646702072011,1.9731973,2536.5,2535.5,2.4809]
[1646702072210,0.98656,2536.2,2535.5,2.4809]
[1646702072411,0.491,2536.1,2535.4,0.0181519]
[1646702072611,1.00502841,2535.9,2535.4,1.08681146]
[1646702073261,1.00502841,2535.9,2535.3,0.073434]
[1646702073461,1.00502841,2535.9,2535.5,0.00530379]
[1646702074061,1.97308,2535.8,2535.5,0.00530379]
[1646702074461,1.97308,2535.8,2535.3,1.13437323]
[1646702074665,0.98642,2536.2,2535.5,0.00530718]
[1646702074666,0.00096,2536.2,2535.5,0.00530718]
[1646702074863,0.00096,2536.3,2535.5,0.00530718]
[1646702075062,0.00096,2536.8,2535.6,1.3992688]
[1646702075263,0.00096,2536.8,2535.8,0.3934]
[1646702075264,1.97233,2536.6,2535.8,0.3934]
[1646702075463,1.97233,2536.6,2536.0,0.3934]
[1646702075661,1.97233,2536.6,2536.2,1.16208437]
[1646702076061,1.97233,2536.6,2536.2,1.11208437]
[1646702076263,0.98606,2536.8,2536.2,1.11208437]
[1646702077113,0.98606,2536.8,2536.4,0.00530644]
[1646702077114,1.07819749,2536.7,2536.4,0.00530644]
[1646702077519,1.97234,2536.6,2536.4,0.00530644]
[1646702077920,0.98615,2536.6,2536.4,0.00530644]
[1646702078120,1.07819749,2536.7,2536.1,0.98611]
[1646702078320,1.07915749,2536.7,2536.1,0.98611]
[1646702078520,1.07819749,2536.7,2536.4,0.00512736]
[1646702079325,1.07819749,2536.7,2536.0,0.86538022]
[1646702079529,0.688,2537.1,2536.4,0.00512732]
[1646702079530,1.97235,2536.9,2536.4,0.00512732]
[1646702079727,0.19796,2537.2,2536.4,0.00512732]
[1646702079929,0.197,2537.2,2536.4,0.00512732]
[1646702080125,3.44943,2537.3,2536.4,0.00512732]
[1646702080328,2.95843,2537.3,2536.4,0.00512732]
[1646702080563,1.97217,2537.0,2536.6,1.21998612]
[1646702080763,1.05143139,2537.2,2536.7,0.00512712]
[1646702080764,0.98608,2537.2,2536.7,0.00512712]
[1646702080963,0.212,2537.4,2536.7,0.00512712]
[1646702081164,0.015,2537.4,2536.7,0.00512712]
[1646702081761,1.97163,2537.7,2537.4,0.00448575]
[1646702081762,0.94274529,2537.5,2537.4,0.00448575]
[1646702082963,5.5044,2537.4,2536.1,0.9861]
[1646702083162,5.5044,2537.4,2536.0,5.848]
[1646702083163,1.47714,2537.3,2536.2,0.0199655]
[1646702083364,0.3,2537.2,2536.2,0.0199655]
[1646702083564,1.4772069,2537.1,2536.2,0.0199655]
[1646702083963,2.7633069,2537.1,2536.2,0.0199655]
[1646702084215,0.90127438,2536.6,2536.2,0.0199655]
[1646702085016,1.88745438,2536.6,2536.2,0.0199655]
[1646702085617,1.88745438,2536.6,2536.3,0.00530652]
[1646702086317,1.88745438,2536.6,2536.3,0.02527202]
[1646702086517,1.88745438,2536.6,2536.3,0.0199655]
[1646702086717,0.98618,2536.6,2536.3,0.0199655]
[1646702086921,0.00096,2537.0,2536.3,0.0199655]
[1646702086922,0.14796,2537.3,2536.3,0.02527198]
[1646702087318,0.00530424,2537.4,2536.3,0.02527198]
[1646702087723,2.95824,2537.6,2536.3,0.0199655]
[1646702087979,2.88477228,2537.2,2536.3,0.0199655]
[1646702088171,2.88477228,2537.2,2536.6,0.00530639]
[1646702088372,3.18477228,2537.2,2536.6,0.00530639]
[1646702088577,4.18477228,2537.2,2536.6,0.00530639]
[1646702088776,3.18477228,2537.2,2536.6,0.00530639]
[1646702088976,3.18477228,2537.2,2536.3,0.0199655]
[1646702089175,1.06927533,2536.8,2536.6,0.00530651]
[1646702089577,0.3,2536.9,2536.6,0.00530651]
[1646702090076,1.97214,2537.0,2536.4,3.5]
[1646702090279,0.98591,2537.0,2536.4,3.5199655]
[1646702090476,0.98591,2537.0,2536.6,0.00514713]
[1646702090777,0.98591,2537.0,2536.7,1.18382257]
[1646702091379,0.98591,2537.0,2536.7,1.20378807]
[1646702092822,1.97181,2537.3,2536.7,1.20378807]
[1646702093217,0.99098559,2537.4,2536.7,1.20378807]
[1646702093618,1.09676796,2537.2,2536.7,1.20378807]
[1646702094018,2.08276796,2537.2,2536.7,1.20378807]
[1646702094418,2.38276796,2537.2,2536.7,0.0199655]
[1646702095118,2.08276796,2537.2,2536.7,0.0199655]
[1646702095316,2.38276796,2537.2,2536.7,0.0199655]
[1646702096166,2.08276796,2537.2,2536.7,0.0199655]
[1646702096365,2.38276796,2537.2,2536.7,0.0199655]
[1646702096567,2.08276796,2537.2,2536.7,0.0199655]
[1646702096767,2.38276796,2537.2,2536.7,0.0199655]
[1646702096968,0.791,2537.1,2536.7,0.0199655]
[1646702097167,1.97255,2537.0,2536.7,0.0199655]
[1646702097467,0.491,2536.9,2536.7,0.0199655]
[1646702097666,1.47714,2536.9,2536.7,0.0199655]
[1646702097867,0.98614,2536.9,2536.7,0.0199655]
[1646702098268,1.28614,2536.9,2536.7,0.0199655]
[1646702100818,2.27228,2536.9,2536.7,0.0199655]
[1646702101016,1.28614,2536.9,2536.7,0.0199655]
[1646702101215,0.197,2537.3,2536.8,1.01029544]
[1646702101216,0.98582,2537.3,2536.8,1.01029544]
[1646702101420,0.93582,2537.3,2536.8,1.03026094]
[1646702101615,0.93582,2537.3,2536.9,1.01029544]
[1646702101817,1.97159,2537.6,2537.4,0.2782103]
[1646702101818,0.98589,2537.5,2537.4,0.2782103]
[1646702102017,1.56455927,2537.5,2537.4,0.2782103]
[1646702103470,0.57866927,2537.5,2537.4,0.2782103]
[1646702103667,2.964035,2537.8,2537.4,0.2782103]
[1646702103668,0.006465,2537.8,2537.4,0.2782103]
[1646702103868,0.006465,2537.8,2537.5,1.01161761]
[1646702104468,0.006465,2537.8,2537.6,0.98537]
[1646702104669,0.006465,2537.8,2537.7,2.04893741]
[1646702104871,1.04294278,2538.7,2538.2,1.09099336]
[1646702104872,3.95578778,2538.7,2538.2,1.09099336]
[1646702105070,0.56115114,2538.6,2538.2,1.09099336]
[1646702105672,0.56115114,2538.6,2538.2,1.04099336]
[1646702105874,1.54661114,2538.6,2538.2,1.04099336]
[1646702106075,0.00529827,2538.5,2538.2,1.04099336]
[1646702106922,0.98546,2538.6,2538.2,1.04099336]
[1646702107323,0.00529831,2538.5,2538.2,1.04099336]
[1646702108123,0.98546,2538.6,2538.2,1.04099336]
[1646702108728,0.98546,2538.6,2537.9,2.9558711]
[1646702108925,0.98546,2538.6,2538.0,1.97806565]
[1646702109126,0.98546,2538.6,2538.0,0.98532]
[1646702109327,5.58975078,2538.3,2538.0,0.98532]
[1646702109727,5.58975078,2538.3,2538.1,0.87905262]
[1646702109928,5.58975078,2538.3,2538.1,1.86430012]
[1646702110131,5.58975078,2538.3,2538.2,0.98522]
[1646702110963,5.58975078,2538.3,2538.2,5.8701266]
[1646702110964,4.86400834,2538.3,2538.2,5.8701266]
[1646702111562,0.00519566,2538.4,2538.2,5.8701266]
[1646702111764,1.07245832,2538.9,2538.3,4.4915066]
[1646702111965,1.02008449,2538.5,2538.1,1.97043]
[1646702112164,1.02008449,2538.5,2537.8,1.97062]
[1646702112165,0.00519566,2538.4,2537.8,1.97062]
[1646702112368,0.00519566,2538.4,2537.9,0.99108117]
[1646702112664,0.98538,2538.3,2537.4,0.87821029]
[1646702112867,0.98538,2538.3,2537.5,0.99122218]
[1646702113063,0.98538,2538.3,2537.5,1.38462218]
[1646702113263,0.99038131,2538.3,2537.7,1.97073]
[1646702113867,1.95870106,2538.3,2537.7,1.97073]
[1646702114066,1.95870106,2538.3,2537.4,0.2782103]
[1646702114067,3.5,2538.2,2537.4,0.2782103]
[1646702114321,0.9857,2537.9,2537.4,0.2782103]
[1646702114519,0.98573,2537.8,2537.4,0.2782103]
[1646702114721,0.88573,2537.8,2537.4,0.2782103]
[1646702114922,1.0350393,2537.5,2537.4,0.2782103]
[1646702116727,5.5,2537.4,2536.9,0.0199655]
[1646702116930,3.991,2537.3,2537.0,0.00501604]
[1646702117130,2.16903,2537.4,2537.0,1.10908271]
[1646702117327,0.30501497,2537.6,2537.0,1.10908271]
[1646702117528,0.00501497,2537.6,2537.0,1.10908271]
[1646702117830,0.00096,2538.2,2536.9,0.0199655]
[1646702118087,0.98564,2537.7,2536.9,0.0199655]
[1646702118287,0.00501489,2537.5,2537.0,0.00501585]
[1646702118490,0.58240431,2537.4,2537.0,0.00501585]
[1646702118688,0.88445109,2537.1,2537.0,0.00501585]
[1646702119091,0.88445109,2537.1,2536.9,0.0199655]
[1646702119288,0.88445109,2537.1,2537.0,1.573e-05]
[1646702119494,0.88445109,2537.1,2536.9,0.0199655]
[1646702119495,5.5,2537.0,2536.9,0.0199655]
[1646702119689,0.58334402,2537.0,2536.9,0.0199655]
[1646702120890,2.27205,2537.2,2536.9,0.0199655]
[1646702120891,1.286,2537.2,2536.9,0.0199655]
[1646702121089,0.986,2537.2,2536.9,0.0199655]
[1646702121912,2.95913,2537.7,2537.0,1.23343758]
[1646702121913,0.00096,2537.7,2537.0,1.23343758]
[1646702122113,0.00096,2538.0,2537.1,0.3934]
[1646702122313,0.61501409,2538.1,2537.1,1.34920708]
[1646702122512,0.61501409,2538.1,2537.2,1.34920708]
[1646702122513,0.98551,2537.8,2537.2,1.34920708]
[1646702122718,0.98551,2537.8,2537.3,0.95523306]
[1646702122917,1.97102,2537.9,2537.3,0.95523306]
[1646702122918,0.00310652,2537.7,2537.6,1.00557233]
[1646702123725,0.98544,2538.1,2537.6,1.39897233]
[1646702123921,0.70141225,2538.7,2537.6,1.39897233]
[1646702123922,1.97048,2538.6,2537.8,0.3934]
[1646702124125,0.61481596,2538.5,2537.8,0.3934]
[1646702124324,0.00096,2538.9,2538.5,0.3934]
[1646702124524,0.95071832,2539.6,2538.5,1.37831]
[1646702124525,0.61543097,2539.2,2538.5,1.37831]
[1646702124722,0.61447097,2539.1,2538.5,1.37831]
[1646702124922,0.89821225,2539.6,2538.7,0.3934]
[1646702124923,1.96968,2539.6,2538.7,0.3934]
[1646702125122,0.6151003,2539.5,2539.1,0.3934]
[1646702125327,0.6141403,2539.4,2539.2,0.9847176]
[1646702125574,0.00096,2540.0,2539.5,3.3934]
[1646702125769,0.591,2540.6,2539.7,5.5]
[1646702125968,0.591,2540.6,2539.6,3.8934]
[1646702125969,0.1968,2540.6,2539.8,3.886928]
[1646702126171,0.1968,2540.8,2539.8,0.3934]
[1646702126372,0.1968,2540.8,2540.2,0.9842881]
[1646702126572,1.31005086,2540.9,2540.2,0.9842881]
[1646702126772,0.95071832,2540.8,2539.9,1.96866]
[1646702126975,1.14751832,2540.7,2539.3,3.5]
[1646702127374,0.1968,2540.7,2539.6,0.9846096]
[1646702127575,0.3,2541.0,2539.8,0.3934]
[1646702127775,0.3,2541.0,2539.7,3.5]
[1646702127776,0.0052935,2540.1,2539.9,3.8934]
[1646702127973,0.0052935,2540.1,2539.9,0.3934]
[1646702128174,0.0052935,2540.1,2539.6,3.5]
[1646702128380,0.0052935,2540.1,2539.9,1.96896]
[1646702128574,0.0052935,2540.1,2540.0,3.5]
[1646702128874,0.00513481,2540.0,2539.9,1.96896]
[1646702129073,0.00513481,2540.0,2539.9,5.46896]
[1646702129315,0.00513481,2540.0,2539.7,1.04357142]
[1646702129720,0.00513481,2540.0,2539.3,0.98473]
[1646702129922,0.00096,2540.4,2539.1,1.2497]
[1646702130125,0.00513481,2540.0,2538.5,4.5]
[1646702130324,0.00513481,2540.0,2538.5,1.0]
[1646702130524,0.98991481,2540.0,2538.8,1.969547]
[1646702130719,1.07641851,2539.8,2539.3,0.87792421]
[1646702131322,0.00513517,2539.5,2539.3,0.87792421]
[1646702132323,0.98485,2539.8,2539.3,0.87792421]
[1646702132522,0.00500441,2539.5,2539.3,0.87792421]
[1646702132962,0.00500441,2539.5,2538.8,3.939217]
[1646702133162,0.00500441,2539.5,2538.8,1.96967]
[1646702133460,0.00500441,2539.5,2538.5,1.96967]
[1646702133461,0.98482,2539.5,2538.5,1.96967]
[1646702133663,0.00500459,2539.3,2538.5,1.96967]
[1646702133860,0.00500459,2539.3,2538.9,1.04925117]
[1646702134462,0.00500459,2539.3,2538.2,2.6274734]
[1646702134463,0.98995459,2539.3,2538.2,1.2219]
[1646702134664,3.5,2539.2,2537.8,3.98518]
[1646702134861,1.97051,2539.0,2537.8,3.0]
[1646702135062,2.27051,2539.0,2537.8,3.0]
[1646702135463,0.96606131,2538.9,2538.3,1.14389271]
[1646702136264,0.00501403,2538.5,2538.3,1.14389271]
[1646702137115,0.98523,2538.6,2538.3,1.14389271]
[1646702137516,0.00501403,2538.5,2538.3,1.14389271]
[1646702137720,0.00096,2539.3,2538.4,5.0]
[1646702137919,0.00096,2539.5,2538.8,0.01293826]
[1646702138117,0.00096,2540.0,2538.8,15.14293826]
[1646702138418,0.00096,2540.0,2538.9,13.3144]
[1646702138617,1.96961,2539.9,2539.0,0.3]
[1646702138820,1.96961,2539.9,2539.0,0.491]
[1646702139317,0.98478,2540.0,2539.0,4.1844]
[1646702139716,0.98474,2539.9,2539.0,5.1844]
[1646702139921,0.00096,2540.2,2539.5,13.64407173]
[1646702140137,3.93897,2541.1,2539.7,0.3934]
[1646702140138,0.00096,2540.5,2539.7,0.3934]
[1646702140319,0.00096,2540.7,2539.9,0.9843207]
[1646702140576,0.00096,2541.0,2540.1,0.3934]
[1646702140777,0.00096,2541.2,2540.0,3.9521773]
[1646702140974,0.90500952,2541.3,2540.5,1.00439773]
[1646702141175,0.00096,2541.2,2540.5,1.00439773]
[1646702141376,0.0184372,2541.3,2540.5,1.30439773]
[1646702141774,0.0184372,2541.3,2540.5,1.69779773]
[1646702141975,0.00310525,2541.0,2540.7,0.98413]
[1646702142174,0.00310525,2541.0,2540.9,1.04582871]
[1646702142376,0.00310525,2541.0,2540.9,0.32761815]
[1646702142975,0.0184372,2541.3,2540.9,0.32761815]
[1646702143174,0.0184372,2541.3,2540.8,3.5]
[1646702143175,0.00529517,2541.1,2541.0,0.98402]
[1646702143374,0.00529517,2541.1,2540.3,1.0]
[1646702143576,0.00529517,2541.1,2540.0,1.003511]
[1646702143774,0.00529517,2541.1,2540.1,0.6934]
[1646702144213,0.98438352,2541.1,2540.3,0.95021851]
[1646702144414,1.96864352,2541.1,2540.0,2.972111]
[1646702144614,0.00529548,2540.7,2540.1,0.1968]
[1646702145415,1.96894,2540.8,2540.2,1.07376427]
[1646702145618,0.00529565,2540.5,2540.2,1.07376427]
[1646702145818,0.00529565,2540.5,2540.2,2.05810427]
[1646702146219,0.00529565,2540.5,2540.2,0.98434]
[1646702146420,0.00529565,2540.5,2540.1,0.1968]
[1646702146620,0.98534352,2541.1,2540.0,0.003511]
[1646702146820,0.5410318,2541.0,2540.0,0.003511]
[1646702147021,0.00529569,2540.5,2540.0,0.003511]
[1646702147222,0.00529569,2540.5,2540.0,1.04622863]
[1646702147622,0.00529569,2540.5,2540.0,0.003511]
[1646702148073,0.93972569,2540.6,2540.0,0.003511]
[1646702148272,0.93972569,2540.6,2539.6,3.09166087]
[1646702148273,0.002946,2539.7,2539.6,3.09166087]
[1646702148673,0.002946,2539.7,2539.6,6.98506087]
[1646702148874,0.002946,2539.7,2539.6,19.31186087]
[1646702149171,0.00096,2540.6,2540.0,2.362]
[1646702149372,0.00096,2540.7,2540.1,0.1968]
[1646702149573,2.95329,2541.2,2540.1,1.1811]
[1646702149574,1.96871,2541.0,2540.1,1.1811]
[1646702149772,1.96871,2541.0,2540.4,1.18668854]
[1646702150382,0.00096,2541.5,2540.4,1.18668854]
[1646702150580,0.00310276,2540.8,2540.4,1.18668854]
[1646702150786,0.00310276,2540.8,2540.1,3.98447]
[1646702151179,0.00310276,2540.8,2540.1,3.0]
[1646702151592,0.52900519,2541.1,2540.1,0.98448]
[1646702151818,0.0052955,2540.6,2540.1,1.89472519]
[1646702152024,0.0052955,2540.6,2540.1,0.98448]
[1646702152622,0.00096,2541.1,2540.1,0.98448]
[1646702152822,0.4968,2541.2,2540.1,0.98448]
[1646702152823,0.72582435,2541.2,2540.1,0.98448]
[1646702153028,0.00529538,2540.6,2540.1,0.98448]
[1646702153726,0.00529538,2540.6,2540.5,0.99089657]
[1646702153927,0.0193972,2541.3,2540.6,0.98429]
[1646702154127,0.0184372,2541.3,2540.6,0.98429]
[1646702154527,0.0184372,2541.3,2540.5,0.99089657]
[1646702154726,0.0184372,2541.3,2540.5,3.98658457]
[1646702154727,1.23457993,2541.2,2540.5,3.98658457]
[1646702155126,1.23457993,2541.2,2540.5,3.0]
[1646702155328,1.23457993,2541.2,2540.2,1.95004]
[1646702155329,0.00529522,2541.0,2540.2,1.95004]
[1646702155777,0.00529522,2541.0,2540.3,0.5]
[1646702155978,0.00529522,2541.0,2540.0,1.96888]
[1646702156178,1.23553993,2541.2,2540.4,1.00507154]
[1646702156379,0.0184372,2541.3,2540.4,1.00507154]
[1646702156778,0.0184372,2541.3,2540.2,4.96855]
[1646702156979,0.0184372,2541.3,2540.4,1.96856]
[1646702156980,0.52775681,2541.2,2540.4,1.96856]
[1646702157378,0.0184372,2541.3,2540.4,1.96856]
[1646702157881,0.0184372,2541.3,2540.8,1.22713279]
[1646702158380,0.0184372,2541.3,2540.6,1.96859]
[1646702158980,0.00519723,2541.2,2540.6,1.96859]
[1646702159220,0.00519723,2541.2,2540.9,1.0]
[1646702159419,0.00519723,2541.2,2541.0,3.8934]
[1646702159620,0.00519723,2541.2,2541.1,3.8934]
[1646702159820,0.0184372,2541.3,2541.1,0.3934]
[1646702160021,0.3938,2542.1,2541.4,0.3934]
[1646702160223,0.007,2542.7,2541.7,0.3934]
[1646702160420,1.05715029,2542.5,2541.9,0.98365]
[1646702160627,1.05715029,2542.5,2541.9,3.98365]
[1646702161024,0.1966,2543.1,2541.9,3.98365]
[1646702161223,0.0031029,2542.3,2541.9,3.98365]
[1646702161526,0.0031029,2542.3,2541.2,1.0]
[1646702161725,0.0031029,2542.3,2541.1,3.7986]
[1646702161726,0.0031029,2542.3,2541.4,0.98393]
[1646702161925,0.0031029,2542.3,2541.4,1.37733]
[1646702162125,0.0031029,2542.3,2541.6,18.5234]
[1646702162426,0.1965,2543.1,2542.0,0.3934]
[1646702162624,0.53939423,2543.0,2542.0,12.5234]
[1646702162823,0.007,2543.3,2542.2,0.3934]
[1646702163063,0.007,2543.3,2542.6,0.3934]
[1646702163064,0.53931583,2543.2,2542.6,0.3934]
[1646702163266,0.53931583,2543.2,2542.6,1.27890904]
[1646702163465,0.53931583,2543.2,2542.6,0.88550904]
[1646702163664,0.53931583,2543.2,2542.1,1.491]
[1646702163665,0.0052976,2543.0,2542.7,4.96679]
[1646702163869,0.0052976,2543.0,2542.7,3.0]
[1646702164066,0.0052976,2543.0,2542.7,3.98335]
[1646702164566,0.53413228,2542.9,2542.7,3.0]
[1646702164766,0.007,2543.3,2541.7,0.13819997]
[1646702164767,1.63774132,2542.8,2541.8,1.02568571]
[1646702164965,0.53413228,2542.7,2541.8,0.9837]
[1646702165167,0.00529765,2543.0,2542.3,0.98362]
[1646702165570,0.00529765,2543.0,2542.4,1.96688]
[1646702165774,0.00529765,2543.0,2542.5,12.13]
[1646702166072,0.007,2543.3,2542.9,0.3934]
[1646702166271,0.007,2543.3,2543.0,0.3934]
[1646702166470,0.007,2543.3,2542.9,0.98299]
[1646702166726,0.007,2543.3,2543.0,1.96582]
[1646702167115,0.007,2543.3,2543.1,0.98291]
[1646702167416,0.007,2543.3,2542.4,1.0]
[1646702167417,0.0031029,2543.2,2542.4,1.0]
[1646702168116,0.9317851,2543.1,2542.5,1.9669]
[1646702168515,0.00513639,2542.9,2542.5,1.9669]
[1646702168717,0.00513639,2542.9,2542.5,2.9669]
[1646702169119,0.00513639,2542.9,2542.6,0.98347]
[1646702169318,0.00513639,2542.9,2542.5,2.9669]
[1646702169517,0.007,2543.3,2542.5,2.9669]
[1646702169718,0.54722923,2543.2,2542.5,2.9669]
[1646702169917,0.54722923,2543.2,2542.5,1.9669]
[1646702169918,0.00513647,2542.8,2542.5,1.9669]
[1646702170121,0.00513647,2542.8,2542.6,0.9835]
[1646702170318,0.98349982,2542.6,2542.5,1.9669]
[1646702170773,1.9669,2542.5,2542.4,3.689553]
[1646702171172,1.9669,2542.5,2541.7,3.08875997]
[1646702171397,1.9669,2542.5,2542.3,0.98364]
[1646702171573,2.364822,2542.5,2541.9,1.96737]
[1646702172374,2.3698469,2542.5,2541.9,1.96737]
[1646702172575,2.3698469,2542.5,2542.0,0.98368]
[1646702172774,2.3698469,2542.5,2541.9,1.96737]
[1646702173175,2.364822,2542.5,2541.9,1.96737]
[1646702173377,2.364822,2542.5,2541.5,3.93374]
[1646702173578,0.0031002,2542.4,2541.6,0.98392]
[1646702173976,0.0031002,2542.4,2541.2,1.96793]
[1646702174228,0.92849795,2541.8,2541.2,1.96793]
[1646702174415,0.00096,2542.3,2541.2,1.96793]
[1646702174614,0.0031002,2542.1,2541.2,1.96793]
[1646702174817,0.0031002,2542.1,2541.4,14.09765]
[1646702175018,0.0031002,2542.1,2541.5,1.96728]
[1646702175521,0.92587748,2542.2,2541.5,1.96728]
[1646702175923,0.00530959,2541.9,2541.6,0.98372]
[1646702176125,0.00530959,2541.9,2541.6,1.96736]
[1646702176821,0.00096,2542.4,2541.6,1.96736]
[1646702176822,1.15123366,2541.8,2541.6,1.96736]
[1646702177022,1.15123366,2541.8,2541.5,1.96728]
[1646702177222,1.15123366,2541.8,2541.3,0.98404]
[1646702177622,1.15123366,2541.8,2541.2,1.96791]
[1646702177623,1.15123366,2541.8,2541.0,0.43819997]
[1646702177822,1.15123366,2541.8,2541.0,0.13819997]
[1646702178067,1.15123366,2541.8,2541.0,1.12234997]
[1646702178265,1.21123037,2541.4,2541.0,1.12234997]
[1646702178670,1.21123037,2541.4,2541.0,0.98415]
[1646702178866,1.21123037,2541.4,2540.7,3.93663]
[1646702178867,1.21123037,2541.4,2540.7,1.96827]
[1646702179465,0.0031002,2541.3,2540.7,1.96827]
[1646702179666,0.0031002,2541.3,2540.5,1.96853]
[1646702179667,0.90777977,2541.0,2540.5,1.96853]
[1646702179866,0.0031002,2541.3,2540.5,1.96853]
[1646702180068,0.0031002,2541.3,2540.7,0.98428]
[1646702180370,0.58839767,2541.6,2540.7,0.98428]